[Event "23rd ETCC Women 2021"]
[Site "Catez"]
[Date "2021.11.13"]
[Round "2.46"]
[White "Medic, Mirjana"]
[Black "Petrova, Kristyna"]
[Result "0-1"]
[ECO "B13"]
[WhiteElo "2196"]
[BlackElo "2275"]
[Annotator "NA"]
[PlyCount "92"]
[EventDate "2021.11.08"]
[EventType "team-tourn"]
[EventCountry "SLO"]
[SourceTitle "playchess.com"]
[Source "ChessBase"]
[SourceQuality "1"]
[WhiteTeam "Croatia"]
[BlackTeam "Czech Republic"]
[WhiteTeamCountry "CRO"]
[BlackTeamCountry "CZE"]
[TimeControl "40/5400+30:1800+30"]

1. d4 {[%emt 0:00:32]} Nf6 {[%emt 0:00:05]} 2. Nf3 {[%emt 0:00:18]} c5 {
[%emt 0:00:15]} 3. e3 {[%emt 0:00:41]} cxd4 {[%emt 0:00:16]} 4. exd4 {[%emt 0:
00:04]} d5 {[%emt 0:00:10]} 5. Bd3 {[%emt 0:00:36]} Bg4 {[%emt 0:00:32]} 6. O-O
{[%emt 0:01:22]} Nc6 {[%emt 0:00:29]} 7. c3 {[%emt 0:00:43]} e6 {[%emt 0:00:30]
} 8. Bg5 {[%emt 0:02:05]} Bd6 {[%emt 0:01:44]} 9. Nbd2 {[%emt 0:02:39]} Qc7 {
[%emt 0:02:59]} 10. h3 {[%emt 0:07:04]} Bh5 {[%emt 0:00:30]} 11. Rc1 {[%emt 0:
11:07]} Bg6 {[%emt 0:23:55]} 12. Bxg6 {[%emt 0:07:30]} hxg6 {[%emt 0:00:12]}
13. c4 {[%emt 0:02:21]} Rh5 {[%emt 0:09:13]} 14. Bxf6 {[%emt 0:04:49]} gxf6 {
[%emt 0:00:09]} 15. cxd5 {[%emt 0:00:09]} Rxd5 {[%emt 0:08:21]} 16. Ne4 {
[%emt 0:03:54]} Be7 {[%emt 0:00:29]} 17. Nc3 {[%emt 0:02:11]} Rd7 {[%emt 0:00:
40]} 18. Qd2 {[%emt 0:11:50]} Qa5 {[%emt 0:30:34]} 19. Qe3 {[%emt 0:08:30]} Nb4
{[%emt 0:03:59]} 20. a3 {[%emt 0:06:31]} Nd5 {[%emt 0:00:06]} 21. Nxd5 {
[%emt 0:02:32]} Qxd5 {[%emt 0:01:56]} 22. Rc2 {[%emt 0:02:03]} Kf8 {[%emt 0:00:
46]} 23. Rfc1 {[%emt 0:00:31]} Kg7 {[%emt 0:00:19]} 24. Qf4 {[%emt 0:04:47]}
Rad8 {[%emt 0:02:23]} 25. Rc4 {[%emt 0:00:37]} Bd6 {[%emt 0:01:39]} 26. Qe3 {
[%emt 0:00:17]} Qf5 {[%emt 0:00:52]} 27. Qe2 {[%emt 0:01:51]} Rh8 {[%emt 0:01:
31]} 28. R4c3 {[%emt 0:03:12]} g5 {[%emt 0:01:00]} 29. Nh2 {[%emt 0:03:32]}
Bxh2+ {[%emt 0:01:28]} 30. Kxh2 {[%emt 0:00:07]} Rxd4 {[%emt 0:00:02]} 31. Kg1
{[%emt 0:01:17]} Rhd8 {[%emt 0:00:25]} 32. Rb3 {[%emt 0:04:02]} Qf4 {[%emt 0:
02:49]} 33. Re1 {[%emt 0:00:19]} b6 {[%emt 0:00:27]} 34. g3 {[%emt 0:02:53]}
Qf5 {[%emt 0:00:32]} 35. g4 {[%emt 0:00:55]} Qd5 {[%emt 0:00:58]} 36. Rb5 {
[%emt 0:01:09]} Qc6 {[%emt 0:01:22]} 37. Rb3 {[%emt 0:01:36]} Rd2 {[%emt 0:00:
28]} 38. Qe3 {[%emt 0:01:43]} Qd5 {[%emt 0:02:41]} 39. a4 {[%emt 0:00:55]} Qa5
{[%emt 0:01:37]} 40. Qc3 {[%emt 0:00:42]} Qxa4 {[%emt 0:00:56]} 41. Ra3 {
[%emt 0:02:33]} Qf4 {[%emt 0:01:28]} 42. Qe3 {[%emt 0:01:08]} Rd1 {[%emt 0:10:
29]} 43. Kg2 {[%emt 0:02:53]} Qc7 {[%emt 0:02:50]} 44. Rxd1 {[%emt 0:01:15]}
Rxd1 {[%emt 0:00:07]} 45. Qe4 {[%emt 0:01:41]} Qd7 {[%emt 0:02:32]} 46. Rf3 {
[%emt 0:00:54]} Qb5 {[%emt 0:00:44]} 0-1

[Event "23rd ETCC Women 2021"]
[Site "Catez"]
[Date "2021.11.13"]
[Round "2.47"]
[White "Richterova, Natasa"]
[Black "Berke, Ana"]
[Result "1/2-1/2"]
[ECO "A34"]
[WhiteElo "2185"]
[BlackElo "2135"]
[Annotator "RC"]
[PlyCount "181"]
[EventDate "2021.11.08"]
[EventType "team-tourn"]
[EventCountry "SLO"]
[SourceTitle "playchess.com"]
[Source "ChessBase"]
[SourceQuality "1"]
[WhiteTeam "Czech Republic"]
[BlackTeam "Croatia"]
[WhiteTeamCountry "CZE"]
[BlackTeamCountry "CRO"]
[TimeControl "40/5400+30:1800+30"]

1. Nf3 {[%emt 0:00:10]} c5 {[%emt 0:00:58]} 2. c4 {[%emt 0:00:14]} Nc6 {
[%emt 0:00:22]} 3. Nc3 {[%emt 0:00:26]} e5 {[%emt 0:00:49]} 4. e3 {[%emt 0:00:
35]} Nf6 {[%emt 0:00:38]} 5. d4 {[%emt 0:00:36]} cxd4 {[%emt 0:00:17]} 6. exd4
{[%emt 0:00:05]} e4 {[%emt 0:00:15]} 7. Ne5 {[%emt 0:00:06]} Bb4 {[%emt 0:01:
28]} 8. Be2 {[%emt 0:00:28]} Qa5 {[%emt 0:00:22]} 9. Nxc6 {[%emt 0:01:13]} dxc6
{[%emt 0:00:07]} 10. O-O {[%emt 0:03:12]} O-O {[%emt 0:01:38]} 11. Bd2 {
[%emt 0:00:23]} h5 {[%emt 0:04:43]} 12. a3 {[%emt 0:01:10]} Bxc3 {[%emt 0:00:
33]} 13. Bxc3 {[%emt 0:00:14]} Qg5 {[%emt 0:00:51]} 14. Qc1 {[%emt 0:00:31]}
Qg6 {[%emt 0:02:08]} 15. Qf4 {[%emt 0:03:08]} Bg4 {[%emt 0:03:36]} 16. Rfe1 {
[%emt 0:03:48]} Bxe2 {[%emt 0:06:17]} 17. Rxe2 {[%emt 0:00:10]} Rad8 {[%emt 0:
02:08]} 18. h3 {[%emt 0:11:03]} Rfe8 {[%emt 0:16:05]} 19. Rae1 {[%emt 0:00:09]}
Kh7 {[%emt 0:06:13]} 20. Re3 {[%emt 0:03:14]} Qh6 {[%emt 0:03:57]} 21. Qf5+ {
[%emt 0:06:26]} Qg6 {[%emt 0:04:02]} 22. Qf4 {[%emt 0:15:38]} Qh6 {[%emt 0:00:
47]} 23. Qc7 {[%emt 0:02:46]} Rd7 {[%emt 0:04:00]} 24. Qa5 {[%emt 0:00:05]} b6
{[%emt 0:07:32]} 25. Qf5+ {[%emt 0:09:44]} Qg6 {[%emt 0:01:09]} 26. Qf4 {
[%emt 0:00:05]} Qh6 {[%emt 0:01:00]} 27. Qf5+ {[%emt 0:15:33]} Qg6 {[%emt 0:01:
19]} 28. Qf4 {[%emt 0:01:01]} Qh6 {[%emt 0:00:45]} 29. Qxh6+ {[%emt 0:03:17]}
Kxh6 {[%emt 0:00:39]} 30. f3 {[%emt 0:00:11]} Rde7 {[%emt 0:01:48]} 31. Kf2 {
[%emt 0:02:41]} h4 {[%emt 0:03:42]} 32. d5 {[%emt 0:10:21]} cxd5 {[%emt 0:03:
09]} 33. Bxf6 {[%emt 0:00:08]} gxf6 {[%emt 0:00:23]} 34. cxd5 {[%emt 0:00:02]}
f5 {[%emt 0:03:08]} 35. fxe4 {[%emt 0:00:28]} fxe4 {[%emt 0:02:16]} 36. d6 {
[%emt 0:00:09]} Re6 {[%emt 0:02:43]} 37. d7 {[%emt 0:00:05]} Rd8 {[%emt 0:00:
42]} 38. Rxe4 {[%emt 0:00:14]} Rf6+ {[%emt 0:01:01]} 39. Kg1 {[%emt 0:00:21]}
Rxd7 {[%emt 0:00:40]} 40. Rxh4+ {[%emt 0:00:04]} Kg7 {[%emt 0:00:45]} 41. Re2 {
[%emt 0:31:21]} Rd1+ {[%emt 0:34:51]} 42. Kh2 {[%emt 0:00:49]} Rf5 {[%emt 0:08:
37]} 43. Rg4+ {[%emt 0:02:11]} Kf6 {[%emt 0:00:00]} 44. Rc4 {[%emt 0:00:00]}
Rd6 {[%emt 0:00:00]} 45. Rc3 {[%emt 0:00:00]} Kg6 {[%emt 0:00:00]} 46. Rg3+ {
[%emt 0:00:00]} Kf6 {[%emt 0:00:00]} 47. Rc2 {[%emt 0:00:00]} Re6 {[%emt 0:00:
00]} 48. Rb3 {[%emt 0:00:00]} Kg6 {[%emt 0:00:00]} 49. Rc7 {[%emt 0:00:00]} a5
{[%emt 0:00:00]} 50. Rb7 {[%emt 0:00:00]} Rff6 {[%emt 0:00:00]} 51. Rg3+ {
[%emt 0:00:00]} Kh7 {[%emt 0:00:00]} 52. b3 {[%emt 0:00:00]} Re5 {[%emt 0:00:
00]} 53. a4 {[%emt 0:00:00]} Re4 {[%emt 0:00:00]} 54. Rd7 {[%emt 0:00:00]} Re5
{[%emt 0:00:00]} 55. Rgd3 {[%emt 0:00:00]} Ree6 {[%emt 0:00:00]} 56. R7d5 {
[%emt 0:00:00]} Kg7 {[%emt 0:02:17]} 57. h4 {[%emt 0:00:00]} Kh6 {[%emt 0:04:
07]} 58. Kh3 {[%emt 0:00:00]} Kg7 {[%emt 0:00:51]} 59. Rg3+ {[%emt 0:00:00]}
Kf8 {[%emt 0:00:40]} 60. Rd8+ {[%emt 0:00:41]} Ke7 {[%emt 0:00:26]} 61. Rgd3 {
[%emt 0:00:22]} Rc6 {[%emt 0:00:39]} 62. R8d4 {[%emt 0:03:48]} Rf5 {[%emt 0:01:
08]} 63. g4 {[%emt 0:01:36]} Rf1 {[%emt 0:00:39]} 64. g5 {[%emt 0:01:47]} Kf8 {
[%emt 0:01:43]} 65. Kg4 {[%emt 0:01:26]} Kg7 {[%emt 0:00:16]} 66. Rd6 {[%emt 0:
01:12]} Rg1+ {[%emt 0:00:29]} 67. Kf4 {[%emt 0:00:17]} Rf1+ {[%emt 0:00:26]}
68. Ke4 {[%emt 0:01:49]} Re1+ {[%emt 0:00:28]} 69. Kf3 {[%emt 0:00:26]} Rf1+ {
[%emt 0:00:16]} 70. Kg2 {[%emt 0:00:52]} Rcc1 {[%emt 0:01:17]} 71. Rxb6 {
[%emt 0:01:06]} Rh1 {[%emt 0:00:00]} 72. Kg3 {[%emt 0:04:04]} Rcg1+ {[%emt 0:
00:22]} 73. Kf2 {[%emt 0:00:00]} Rf1+ {[%emt 0:00:19]} 74. Ke2 {[%emt 0:00:13]}
Re1+ {[%emt 0:00:25]} 75. Kd2 {[%emt 0:00:00]} Rd1+ {[%emt 0:00:24]} 76. Kc3 {
[%emt 0:00:38]} Rc1+ {[%emt 0:00:13]} 77. Kd2 {[%emt 0:00:24]} Rcd1+ {[%emt 0:
00:25]} 78. Kc3 {[%emt 0:01:49]} Rc1+ {[%emt 0:00:07]} 79. Kd4 {[%emt 0:01:18]}
Rxh4+ {[%emt 0:00:14]} 80. Kd5 {[%emt 0:00:04]} Rg4 {[%emt 0:01:41]} 81. Rb5 {
[%emt 0:00:11]} Rxg5+ {[%emt 0:00:17]} 82. Kd6 {[%emt 0:00:05]} Rg6+ {[%emt 0:
00:18]} 83. Kd5 {[%emt 0:00:33]} Rg5+ {[%emt 0:00:24]} 84. Kd6 {[%emt 0:00:07]}
Rg6+ {[%emt 0:00:05]} 85. Kd7 {[%emt 0:00:39]} Ra6 {[%emt 0:00:37]} 86. Rg3+ {
[%emt 0:02:06]} Kf6 {[%emt 0:00:47]} 87. Rf3+ {[%emt 0:00:00]} Kg6 {[%emt 0:00:
18]} 88. Rg3+ {[%emt 0:01:23]} Kf6 {[%emt 0:00:07]} 89. Rf3+ {[%emt 0:00:07]}
Kg6 {[%emt 0:00:04]} 90. Rd5 {[%emt 0:00:38]} Ra7+ {[%emt 0:01:20]} 91. Kd6 {
[%emt 0:00:07]} 1/2-1/2

[Event "23rd ETCC Women 2021"]
[Site "Catez"]
[Date "2021.11.13"]
[Round "2.48"]
[White "Radikovic, Anamarija"]
[Black "Nemcova, Karin"]
[Result "0-1"]
[ECO "B52"]
[WhiteElo "2124"]
[BlackElo "2169"]
[Annotator "NA"]
[PlyCount "72"]
[EventDate "2021.11.08"]
[EventType "team-tourn"]
[EventCountry "SLO"]
[SourceTitle "playchess.com"]
[Source "ChessBase"]
[SourceQuality "1"]
[WhiteTeam "Croatia"]
[BlackTeam "Czech Republic"]
[WhiteTeamCountry "CRO"]
[BlackTeamCountry "CZE"]
[TimeControl "40/5400+30:1800+30"]

1. e4 {[%emt 0:00:02]} c5 {[%emt 0:00:08]} 2. Nf3 {[%emt 0:00:14]} d6 {[%emt 0:
00:07]} 3. Bb5+ {[%emt 0:00:20]} Bd7 {[%emt 0:01:38]} 4. a4 {[%emt 0:00:07]}
Nf6 {[%emt 0:00:26]} 5. Qe2 {[%emt 0:00:09]} Nc6 {[%emt 0:00:45]} 6. c3 {
[%emt 0:01:02]} a6 {[%emt 0:01:26]} 7. Bc4 {[%emt 0:00:30]} g6 {[%emt 0:05:40]}
8. h3 {[%emt 0:06:45]} Qb6 {[%emt 0:07:51]} 9. O-O {[%emt 0:10:09]} Bg7 {
[%emt 0:00:34]} 10. Rd1 {[%emt 0:18:05]} Na5 {[%emt 0:09:24]} 11. e5 {[%emt 0:
03:26]} dxe5 {[%emt 0:00:12]} 12. Nxe5 {[%emt 0:00:07]} O-O {[%emt 0:00:29]}
13. d4 {[%emt 0:01:28]} cxd4 {[%emt 0:07:15]} 14. Rxd4 {[%emt 0:08:35]} Be6 {
[%emt 0:02:27]} 15. Na3 {[%emt 0:04:32]} Rac8 {[%emt 0:09:59]} 16. Be3 {
[%emt 0:04:28]} Nxc4 {[%emt 0:02:19]} 17. Naxc4 {[%emt 0:11:13]} Qc7 {[%emt 0:
04:19]} 18. Bf4 {[%emt 0:02:05]} Nd5 {[%emt 0:02:48]} 19. Bg3 {[%emt 0:02:26]}
Qc5 {[%emt 0:03:50]} 20. Nd3 {[%emt 0:04:22]} Nxc3 {[%emt 0:02:47]} 21. bxc3 {
[%emt 0:03:10]} Bxc4 {[%emt 0:00:13]} 22. Nxc5 {[%emt 0:05:27]} Bxe2 {[%emt 0:
00:22]} 23. Re4 {[%emt 0:00:04]} Rxc5 {[%emt 0:03:30]} 24. Rxe2 {[%emt 0:00:06]
} Rxc3 {[%emt 0:02:26]} 25. Rb1 {[%emt 0:00:38]} e6 {[%emt 0:04:18]} 26. Rxb7 {
[%emt 0:01:00]} Ra3 {[%emt 0:06:21]} 27. Bd6 {[%emt 0:05:01]} Ra1+ {[%emt 0:01:
52]} 28. Kh2 {[%emt 0:00:04]} Rd8 {[%emt 0:04:38]} 29. Be7 {[%emt 0:00:14]} Rc8
{[%emt 0:00:25]} 30. Rd2 {[%emt 0:05:02]} Rxa4 {[%emt 0:03:49]} 31. Rdd7 {
[%emt 0:00:43]} Rf4 {[%emt 0:00:39]} 32. f3 {[%emt 0:02:42]} Be5 {[%emt 0:00:
54]} 33. g3 {[%emt 0:00:53]} Rxf3 {[%emt 0:00:34]} 34. Bg5 {[%emt 0:01:24]}
Rxg3 {[%emt 0:01:58]} 35. Bf6 {[%emt 0:00:31]} Rc2+ {[%emt 0:00:37]} 36. Kh1 {
[%emt 0:00:05]} Rxh3+ {[%emt 0:00:39]} 0-1

[Event "23rd ETCC Women 2021"]
[Site "Catez"]
[Date "2021.11.13"]
[Round "2.49"]
[White "Toma, Katarzyna"]
[Black "Hagarova, Zuzana"]
[Result "0-1"]
[ECO "B51"]
[WhiteElo "2261"]
[BlackElo "2292"]
[Annotator "NA"]
[PlyCount "88"]
[EventDate "2021.11.08"]
[EventType "team-tourn"]
[EventCountry "SLO"]
[SourceTitle "playchess.com"]
[Source "ChessBase"]
[SourceQuality "1"]
[WhiteTeam "England"]
[BlackTeam "Slovakia"]
[WhiteTeamCountry "ENG"]
[BlackTeamCountry "SVK"]
[TimeControl "40/5400+30:1800+30"]

1. e4 {[%emt 0:00:03]} c5 {[%emt 0:00:12]} 2. Nf3 {[%emt 0:00:08]} d6 {[%emt 0:
00:09]} 3. Bb5+ {[%emt 0:00:23]} Nd7 {[%emt 0:00:33]} 4. O-O {[%emt 0:00:37]}
Ngf6 {[%emt 0:01:06]} 5. Re1 {[%emt 0:00:31]} a6 {[%emt 0:01:15]} 6. Bd3 {
[%emt 0:00:27]} e6 {[%emt 0:08:56]} 7. c3 {[%emt 0:01:20]} b5 {[%emt 0:01:27]}
8. Bc2 {[%emt 0:00:52]} Bb7 {[%emt 0:16:21]} 9. d4 {[%emt 0:06:14]} Be7 {
[%emt 0:00:52]} 10. Nbd2 {[%emt 0:07:45]} cxd4 {[%emt 0:16:00]} 11. cxd4 {
[%emt 0:01:47]} Rc8 {[%emt 0:00:27]} 12. e5 {[%emt 0:18:53]} dxe5 {[%emt 0:21:
21]} 13. dxe5 {[%emt 0:00:06]} Ng4 {[%emt 0:00:24]} 14. Be4 {[%emt 0:14:15]}
Bxe4 {[%emt 0:01:33]} 15. Rxe4 {[%emt 0:00:09]} h5 {[%emt 0:03:36]} 16. h3 {
[%emt 0:06:09]} Nh6 {[%emt 0:03:07]} 17. Nb3 {[%emt 0:03:21]} Nf5 {[%emt 0:02:
43]} 18. Bd2 {[%emt 0:04:54]} Nc5 {[%emt 0:00:40]} 19. Nxc5 {[%emt 0:00:34]}
Rxc5 {[%emt 0:04:32]} 20. Rc1 {[%emt 0:07:33]} Rxc1 {[%emt 0:05:50]} 21. Qxc1 {
[%emt 0:00:08]} O-O {[%emt 0:00:13]} 22. Qc2 {[%emt 0:10:13]} Qd5 {[%emt 0:00:
58]} 23. g4 {[%emt 0:02:04]} hxg4 {[%emt 0:02:34]} 24. hxg4 {[%emt 0:00:04]}
Nh6 {[%emt 0:00:17]} 25. Kg2 {[%emt 0:06:56]} f5 {[%emt 0:03:53]} 26. Rd4 {
[%emt 0:00:24]} Qc5 {[%emt 0:00:20]} 27. Qb3 {[%emt 0:01:28]} fxg4 {[%emt 0:00:
43]} 28. Qxe6+ {[%emt 0:00:54]} Kh8 {[%emt 0:01:04]} 29. Bxh6 {[%emt 0:02:57]}
gxf3+ {[%emt 0:00:31]} 30. Kh3 {[%emt 0:00:06]} Qxd4 {[%emt 0:01:24]} 31. Qxe7
{[%emt 0:00:44]} Rg8 {[%emt 0:00:58]} 32. Be3 {[%emt 0:03:15]} Qe4 {[%emt 0:00:
37]} 33. Kg3 {[%emt 0:00:59]} Rc8 {[%emt 0:01:30]} 34. Qg5 {[%emt 0:00:43]} Kg8
{[%emt 0:00:45]} 35. Bf4 {[%emt 0:00:26]} Rf8 {[%emt 0:00:30]} 36. Qg4 {
[%emt 0:00:21]} Qf5 {[%emt 0:00:27]} 37. Qh4 {[%emt 0:00:46]} Qg6+ {[%emt 0:00:
31]} 38. Kxf3 {[%emt 0:00:26]} Qd3+ {[%emt 0:00:23]} 39. Kg2 {[%emt 0:00:12]}
Qd5+ {[%emt 0:00:22]} 40. Kh2 {[%emt 0:00:44]} Qxa2 {[%emt 0:00:49]} 41. Qg4 {
[%emt 0:06:01]} Qc4 {[%emt 0:05:44]} 42. Kg3 {[%emt 0:00:41]} a5 {[%emt 0:02:
11]} 43. Qg5 {[%emt 0:08:37]} b4 {[%emt 0:04:27]} 44. Be3 {[%emt 0:04:24]} Qe4
{[%emt 0:03:29]} 0-1

[Event "23rd ETCC Women 2021"]
[Site "Catez"]
[Date "2021.11.13"]
[Round "2.50"]
[White "Sucikova, Svetlana"]
[Black "Head, Louise"]
[Result "1-0"]
[ECO "D10"]
[WhiteElo "2197"]
[BlackElo "2069"]
[Annotator "NA"]
[PlyCount "110"]
[EventDate "2021.11.08"]
[EventType "team-tourn"]
[EventCountry "SLO"]
[SourceTitle "playchess.com"]
[Source "ChessBase"]
[SourceQuality "1"]
[WhiteTeam "Slovakia"]
[BlackTeam "England"]
[WhiteTeamCountry "SVK"]
[BlackTeamCountry "ENG"]
[TimeControl "40/5400+30:1800+30"]

1. c4 {[%emt 0:00:40]} c6 {[%emt 0:00:31]} 2. Nc3 {[%emt 0:03:56]} d5 {[%emt 0:
01:03]} 3. e3 {[%emt 0:01:30]} Nf6 {[%emt 0:00:36]} 4. d4 {[%emt 0:06:25]} a6 {
[%emt 0:04:14]} 5. b3 {[%emt 0:08:05]} Bf5 {[%emt 0:00:57]} 6. Bb2 {[%emt 0:01:
29]} e6 {[%emt 0:00:33]} 7. Nf3 {[%emt 0:01:08]} Nbd7 {[%emt 0:02:31]} 8. Be2 {
[%emt 0:01:19]} Bd6 {[%emt 0:09:21]} 9. O-O {[%emt 0:01:17]} O-O {[%emt 0:05:
40]} 10. Nh4 {[%emt 0:09:19]} Be4 {[%emt 0:17:21]} 11. g3 {[%emt 0:15:16]} h6 {
[%emt 0:04:06]} 12. Nxe4 {[%emt 0:04:46]} dxe4 {[%emt 0:02:22]} 13. Qc2 {
[%emt 0:00:32]} Re8 {[%emt 0:08:50]} 14. Rad1 {[%emt 0:01:40]} Rc8 {[%emt 0:05:
08]} 15. f3 {[%emt 0:04:15]} exf3 {[%emt 0:02:04]} 16. Bxf3 {[%emt 0:00:10]}
Qc7 {[%emt 0:08:45]} 17. Qf2 {[%emt 0:09:51]} Bf8 {[%emt 0:05:12]} 18. Bg2 {
[%emt 0:01:44]} e5 {[%emt 0:01:59]} 19. Kh1 {[%emt 0:02:12]} e4 {[%emt 0:05:26]
} 20. Bh3 {[%emt 0:00:38]} Rcd8 {[%emt 0:00:40]} 21. Nf5 {[%emt 0:00:56]} Kh7 {
[%emt 0:06:30]} 22. Ba1 {[%emt 0:03:54]} g6 {[%emt 0:01:02]} 23. d5 cxd5 {
[%emt 0:00:33]} 24. cxd5 {[%emt 0:06:03]} Ne5 {[%emt 0:00:33]} 25. d6 {[%emt 0:
01:51]} Qc5 {[%emt 0:03:54]} 26. b4 {[%emt 0:01:40]} Qb6 {[%emt 0:01:47]} 27.
Bxe5 {[%emt 0:04:23]} Rxe5 {[%emt 0:00:21]} 28. Nxh6 {[%emt 0:00:03]} Bxh6 {
[%emt 0:01:05]} 29. Qxf6 {[%emt 0:00:06]} Rh5 {[%emt 0:00:52]} 30. Qxf7+ {
[%emt 0:02:45]} Bg7 {[%emt 0:00:13]} 31. Qe6 {[%emt 0:03:28]} Re5 {[%emt 0:00:
32]} 32. Qb3 {[%emt 0:02:27]} Rxd6 {[%emt 0:00:07]} 33. Rxd6 {[%emt 0:00:06]}
Qxd6 {[%emt 0:00:03]} 34. Rd1 {[%emt 0:00:05]} Qf6 {[%emt 0:00:13]} 35. Rf1 {
[%emt 0:01:27]} Qd8 {[%emt 0:00:22]} 36. Rf4 {[%emt 0:00:42]} Rh5 {[%emt 0:00:
14]} 37. Bg2 {[%emt 0:01:37]} Qd2 {[%emt 0:00:06]} 38. Rf1 {[%emt 0:01:06]} Qd6
{[%emt 0:00:49]} 39. Kg1 {[%emt 0:00:29]} Rb5 {[%emt 0:02:18]} 40. a3 {[%emt 0:
00:27]} a5 {[%emt 0:00:34]} 41. Rf4 {[%emt 0:02:28]} Rf5 {[%emt 0:10:27]} 42.
Bxe4 {[%emt 0:06:25]} Rxf4 {[%emt 0:01:40]} 43. gxf4 {[%emt 0:00:09]} axb4 {
[%emt 0:00:28]} 44. axb4 {[%emt 0:00:48]} b6 {[%emt 0:07:28]} 45. Qc2 {[%emt 0:
05:52]} Bf8 {[%emt 0:03:56]} 46. b5 {[%emt 0:02:26]} Kh6 {[%emt 0:01:05]} 47.
Kf2 {[%emt 0:02:41]} Be7 {[%emt 0:00:47]} 48. h3 {[%emt 0:01:14]} Bh4+ {
[%emt 0:02:17]} 49. Kg2 {[%emt 0:00:11]} Qb4 {[%emt 0:04:39]} 50. Kh2 {[%emt 0:
06:17]} Qxb5 {[%emt 0:00:47]} 51. Bxg6 {[%emt 0:01:33]} Qd5 {[%emt 0:02:18]}
52. Be4 {[%emt 0:00:21]} Qe6 {[%emt 0:00:30]} 53. Qg2 {[%emt 0:01:43]} b5 {
[%emt 0:00:26]} 54. Bc2 {[%emt 0:00:28]} b4 {[%emt 0:00:32]} 55. Qg4 {[%emt 0:
00:13]} Qxg4 {[%emt 0:00:44]} 1-0

[Event "23rd ETCC Women 2021"]
[Site "Catez"]
[Date "2021.11.13"]
[Round "2.51"]
[White "Bayat, Shohreh"]
[Black "Mrvova, Alena"]
[Result "0-1"]
[ECO "B30"]
[WhiteElo "2091"]
[BlackElo "2174"]
[Annotator "NA"]
[PlyCount "58"]
[EventDate "2021.11.08"]
[EventType "team-tourn"]
[EventCountry "SLO"]
[SourceTitle "playchess.com"]
[Source "ChessBase"]
[SourceQuality "1"]
[WhiteTeam "England"]
[BlackTeam "Slovakia"]
[WhiteTeamCountry "ENG"]
[BlackTeamCountry "SVK"]
[TimeControl "40/5400+30:1800+30"]

1. e4 {[%emt 0:00:03]} c5 {[%emt 0:00:28]} 2. Nf3 {[%emt 0:00:05]} Nc6 {
[%emt 0:00:31]} 3. Bb5 {[%emt 0:00:16]} e6 {[%emt 0:00:35]} 4. Bxc6 {[%emt 0:
01:34]} bxc6 {[%emt 0:00:33]} 5. e5 {[%emt 0:00:29]} Ne7 {[%emt 0:01:50]} 6.
O-O {[%emt 0:01:52]} d6 {[%emt 0:02:54]} 7. exd6 {[%emt 0:00:28]} Ng6 {[%emt 0:
00:10]} 8. Na3 {[%emt 0:06:23]} Bxd6 {[%emt 0:02:01]} 9. Nc4 {[%emt 0:00:27]}
Bc7 {[%emt 0:00:29]} 10. Qe2 {[%emt 0:08:17]} O-O {[%emt 0:03:40]} 11. d3 {
[%emt 0:05:10]} Qd5 {[%emt 0:03:55]} 12. Qe4 {[%emt 0:06:27]} f5 {[%emt 0:02:
37]} 13. Qxd5 {[%emt 0:04:25]} cxd5 {[%emt 0:00:12]} 14. Na3 {[%emt 0:00:50]}
Rb8 {[%emt 0:02:12]} 15. c4 {[%emt 0:02:51]} Bd7 {[%emt 0:03:49]} 16. b3 {
[%emt 0:09:47]} d4 {[%emt 0:04:03]} 17. Nc2 {[%emt 0:05:52]} e5 {[%emt 0:01:58]
} 18. Rb1 {[%emt 0:09:22]} Bd6 {[%emt 0:02:56]} 19. Nfe1 {[%emt 0:06:21]} Bc6 {
[%emt 0:04:52]} 20. f3 {[%emt 0:02:57]} e4 {[%emt 0:03:36]} 21. fxe4 {[%emt 0:
00:09]} fxe4 {[%emt 0:00:05]} 22. Rxf8+ {[%emt 0:00:29]} Rxf8 {[%emt 0:00:13]}
23. Ba3 {[%emt 0:04:43]} Nf4 {[%emt 0:01:20]} 24. Kf2 {[%emt 0:05:26]} Nxd3+ {
[%emt 0:03:47]} 25. Ke2 {[%emt 0:01:41]} Rf2+ {[%emt 0:00:42]} 26. Kd1 {
[%emt 0:00:01]} Nxe1 {[%emt 0:00:47]} 27. Nxe1 {[%emt 0:02:11]} Rxa2 {[%emt 0:
00:48]} 28. Bb2 {[%emt 0:00:37]} Bxh2 {[%emt 0:00:30]} 29. b4 {[%emt 0:00:07]}
Ba4+ {[%emt 0:00:07]} 0-1

[Event "23rd ETCC Women 2021"]
[Site "Catez"]
[Date "2021.11.13"]
[Round "2.52"]
[White "Motycakova, Monika"]
[Black "Varney, Zoe"]
[Result "1/2-1/2"]
[ECO "C88"]
[WhiteElo "2119"]
[BlackElo "1955"]
[Annotator "NA"]
[PlyCount "103"]
[EventDate "2021.11.08"]
[EventType "team-tourn"]
[EventCountry "SLO"]
[SourceTitle "playchess.com"]
[Source "ChessBase"]
[SourceQuality "1"]
[WhiteTeam "Slovakia"]
[BlackTeam "England"]
[WhiteTeamCountry "SVK"]
[BlackTeamCountry "ENG"]
[TimeControl "40/5400+30:1800+30"]

1. e4 {[%emt 0:00:05]} e5 {[%emt 0:00:07]} 2. Nf3 {[%emt 0:00:10]} Nc6 {
[%emt 0:00:15]} 3. Bb5 {[%emt 0:00:06]} a6 {[%emt 0:00:06]} 4. Ba4 {[%emt 0:00:
08]} Nf6 {[%emt 0:00:07]} 5. O-O {[%emt 0:00:42]} Be7 {[%emt 0:00:09]} 6. Re1 {
[%emt 0:01:16]} b5 {[%emt 0:00:15]} 7. Bb3 {[%emt 0:00:02]} O-O {[%emt 0:00:13]
} 8. a4 {[%emt 0:00:31]} Bb7 {[%emt 0:00:40]} 9. d3 {[%emt 0:00:32]} d6 {
[%emt 0:00:31]} 10. Nbd2 {[%emt 0:01:12]} Nd7 {[%emt 0:00:52]} 11. c3 {[%emt 0:
01:07]} Nc5 {[%emt 0:00:54]} 12. axb5 {[%emt 0:00:24]} axb5 {[%emt 0:00:31]}
13. Rxa8 {[%emt 0:00:23]} Qxa8 {[%emt 0:00:15]} 14. Bc2 {[%emt 0:00:06]} b4 {
[%emt 0:01:10]} 15. d4 {[%emt 0:02:37]} bxc3 {[%emt 0:01:13]} 16. bxc3 {
[%emt 0:00:24]} Nd7 {[%emt 0:00:28]} 17. Nf1 {[%emt 0:01:28]} Qa1 {[%emt 0:02:
02]} 18. Ne3 {[%emt 0:02:53]} Bf6 {[%emt 0:02:17]} 19. Nd5 {[%emt 0:21:05]}
exd4 {[%emt 0:02:08]} 20. Nxf6+ {[%emt 0:03:26]} Nxf6 {[%emt 0:00:09]} 21. cxd4
{[%emt 0:00:07]} Nb4 {[%emt 0:01:58]} 22. d5 {[%emt 0:07:14]} Re8 {[%emt 0:06:
11]} 23. Re3 {[%emt 0:11:24]} Nxc2 {[%emt 0:28:29]} 24. Qxc2 {[%emt 0:00:17]}
Nxe4 {[%emt 0:18:37]} 25. Ng5 {[%emt 0:21:45]} Bxd5 {[%emt 0:05:54]} 26. Nxe4 {
[%emt 0:06:17]} Rxe4 {[%emt 0:10:03]} 27. Qxc7 {[%emt 0:02:58]} h6 {[%emt 0:05:
31]} 28. Rxe4 {[%emt 0:04:23]} Bxe4 {[%emt 0:03:42]} 29. h3 {[%emt 0:03:28]}
Qb1 {[%emt 0:05:02]} 30. Kh2 {[%emt 0:02:13]} Qd3 {[%emt 0:01:36]} 31. Bb2 {
[%emt 0:04:03]} Qd2 {[%emt 0:02:10]} 32. Qc8+ {[%emt 0:00:37]} Kh7 {[%emt 0:00:
05]} 33. Qc3 {[%emt 0:00:03]} Qf4+ {[%emt 0:01:32]} 34. Qg3 {[%emt 0:00:50]}
Qxg3+ {[%emt 0:01:10]} 35. Kxg3 {[%emt 0:00:05]} g5 {[%emt 0:00:14]} 36. f3 {
[%emt 0:01:33]} Bd3 {[%emt 0:00:12]} 37. h4 {[%emt 0:00:14]} Kg6 {[%emt 0:00:
30]} 38. hxg5 {[%emt 0:00:32]} hxg5 {[%emt 0:00:18]} 39. f4 {[%emt 0:01:50]}
Be4 {[%emt 0:00:39]} 40. Ba3 {[%emt 0:01:17]} d5 {[%emt 0:00:38]} 41. fxg5 {
[%emt 0:02:45]} Kxg5 {[%emt 0:00:28]} 42. Bb2 {[%emt 0:03:30]} Kf5 {[%emt 0:01:
50]} 43. Bc3 {[%emt 0:02:21]} Bc2 {[%emt 0:02:53]} 44. Kf3 {[%emt 0:01:02]}
Be4+ {[%emt 0:01:44]} 45. Kg3 {[%emt 0:01:06]} Bxg2 {[%emt 0:06:41]} 46. Kxg2 {
[%emt 0:00:23]} Ke4 {[%emt 0:00:10]} 47. Bf6 {[%emt 0:06:48]} Ke3 {[%emt 0:04:
05]} 48. Kg3 {[%emt 0:00:31]} Ke4 {[%emt 0:02:22]} 49. Kg4 {[%emt 0:00:22]} d4
{[%emt 0:00:16]} 50. Bxd4 {[%emt 0:00:49]} f5+ {[%emt 0:00:18]} 51. Kg5 {
[%emt 0:00:07]} Kxd4 {[%emt 0:00:15]} 52. Kxf5 {[%emt 0:00:08]} 1/2-1/2